Cogmind - Beta 14 @@@ ROGUE MODE // 2024.08.09 @ 14:50:58 Player: Heclapar Result: Destroyed by B-86 Titan with Railgun Performance ------------- Evolutions (5) 2500 Regions Visited (13) 2600 Robots Destroyed (93) 465 Value Destroyed (3665) 3665 Prototype IDs (1) 20 Alien Tech Used (0) 0 Bonus (1304) 1304 TOTAL SCORE: 10554 Bonus ------- Met Warlord at Base 500 MAIN.C Attacked Warlord 500 Warlord Defense Kills 304 Cogmind --------- Core Integrity 0/1000 Matter 252/300 Energy 100/100 System Corruption 9% Temperature Cool (0) Movement Core (50) Location -5/Warlord Parts ------- > --- POWER (2) -------- (None) > --- PROPULSION (5) --- (None) > --- UTILITY (6) ------ (None) > --- WEAPON (4) ------- (None) > --- INVENTORY (5) ---- Energy Well (350) Layered Medium Armor Plating Makeshift Ablative Armor Vortex Shotgun Vortex Shotgun Peak State ------------ > --- POWER ------------ Reinforced Deuterium Engine Reinforced Deuterium Engine > --- PROPULSION ------- Improved Treads Armored Medium Treads Armored Medium Treads Makeshift Hover Unit Makeshift Hover Unit > --- UTILITY ---------- Improved Cryofiber Web Improved Cooling System Huge Storage Unit Advanced Terrain Scanner Advanced Terrain Scan Processor Hacking Suite > --- WEAPON ----------- Backup Laser III Backup Laser III Heavy Battle Rifle Thermoblaster > --- INVENTORY -------- Nuclear Core Neutrino Core Light Antimatter Reactor Backup Propulsion III Cryofiber Web Advanced Heat Sink Energy Well Improved Sensor Array Improved Signal Interpreter Improved Terrain Scan Processor Melee Analysis Suite Advanced Launcher Guidance Computer Improved Armor Integrity Analyzer Advanced ECM Suite Layered Medium Armor Plating Medium Reflective Plating Makeshift Ablative Armor Advanced Shield Generator Force Field Thermic Laser Vortex Shotgun Vortex Shotgun Heavy Battle Rifle Missile Launcher Sapper Charge [Rating: 82] Favorites ----------- Power Reinforced Deuterium Engine Engine Reinforced Deuterium Engine Power Core Neutrino Core Propulsion Improved Treads Treads Improved Treads Leg Improved Titanium Leg Wheel Armored Huge Wheel Hover Unit Makeshift Hover Unit Utility Hacking Suite Device Improved Cooling System Storage Huge Storage Unit Processor Advanced Terrain Scan Processor Hackware Hacking Suite Protection Improved Light Armor Plating Weapon Particle Gun Energy Gun Particle Gun Energy Cannon Proton Cannon Ballistic Gun Heavy Assault Rifle Ballistic Cannon Magnetic Acceleration Cannon Launcher Thermoblaster Slashing Weapon Ripper Build | -11 -10 -10 -8 -7 -7 -7 -7 -6 -6 -5 -5 -5 -5 ------- Run | Yrd Mat Sub Mat Fac Low Low Zio Pro Fac Fac Upp Upp War Slots Evolved 10 | . . . 4 2 . . . . 2 2 . . . Power 1 | . . . . . . . . . 1 . . . . Propulsion 3 | . . . . 1 . . . . . 2 . . . Utility 4 | . . . 2 1 . . . . 1 . . . . Weapon 2 | . . . 2 . . . . . . . . . . Parts Attached 129 | . 8 16 18 10 1 16 . 3 21 7 1 19 9 Power 18 | . 1 1 2 2 . 3 . . 7 1 . 1 . Engine 12 | . 1 1 2 1 . 3 . . 3 . . 1 . Core 6 | . . . . 1 . . . . 4 1 . . . Reactor . | . . . . . . . . . . . . . . Propulsion 34 | . 1 4 4 3 . 4 . . 6 3 . 5 4 Treads 20 | . . 4 1 3 . 3 . . 3 . . 4 2 Leg 8 | . 1 . . . . . . . 3 3 . 1 . Wheel 4 | . . . 3 . . 1 . . . . . . . Hover 2 | . . . . . . . . . . . . . 2 Flight . | . . . . . . . . . . . . . . Utility 37 | . 3 4 4 4 1 4 . 1 7 3 . 6 . Device 21 | . . 2 2 1 . 2 . 1 4 3 . 6 . Storage 3 | . 1 1 . 1 . . . . . . . . . Processor 2 | . . . . . . . . . 2 . . . . Hackware 3 | . 1 . . 1 . . . . 1 . . . . Protection 8 | . 1 1 2 1 1 2 . . . . . . . Artifact . | . . . . . . . . . . . . . . Weapon 40 | . 3 7 8 1 . 5 . 2 1 . 1 7 5 Energy Gun 10 | . . 1 3 . . 1 . . . . . 5 . Energy Cannon 2 | . . . . . . 1 . 1 . . . . . Ballistic Gun 14 | . 3 3 3 1 . 1 . . . . . . 3 Ballistic Cannon 2 | . . 1 . . . . . 1 . . . . . Launcher 8 | . . 2 1 . . 1 . . . . 1 1 2 Special Weapon . | . . . . . . . . . . . . . . Impact Weapon . | . . . . . . . . . . . . . . Slashing Weapon 4 | . . . 1 . . 1 . . 1 . . 1 . Piercing Weapon . | . . . . . . . . . . . . . . Special Melee Weapon . | . . . . . . . . . . . . . . Unidentified Prototypes 1 | . . . . . . . . . 1 . . . . Parts Lost 63 | . 1 5 6 . . 15 . . 8 . . 16 12 Power 7 | . . . 1 . . 2 . . 2 . . 1 1 Propulsion 22 | . . 2 2 . . 3 . . 3 . . 7 5 Utility 10 | . . 1 . . . 4 . . 2 . . 1 2 Weapon 24 | . 1 2 3 . . 6 . . 1 . . 7 4 Highest Loss Streak 12 | . 1 2 4 . . 6 . . 4 . . 9 12 To Critical Strikes 1 | . 1 . . . . . . . . . . . . Average Slot Usage (%) 87 | . 99 93 84 92 100 85 69 85 90 87 88 81 74 Engine 8 | . 14 14 7 4 7 6 7 7 6 5 5 7 10 Core 1 | . . . . 2 . . . . 4 5 5 2 . Treads 9 | . . 18 11 8 23 18 7 7 13 . . 4 5 Leg 7 | . 28 6 . . . . . . 2 22 23 14 . Wheel 1 | . . . 5 6 . 2 7 7 1 . . . . Hover 1 | . . . . . . . . . . . . . 7 Device 9 | . . 9 9 7 7 12 7 13 8 5 5 10 16 Storage 7 | . 14 10 9 7 7 7 7 7 6 5 5 5 4 Processor 3 | . . . . . . . . . 9 11 11 8 4 Hackware 7 | . 7 2 . 7 7 7 7 7 13 11 11 8 4 Protection 3 | . 5 2 8 15 15 6 7 7 . . . . . Energy Gun 8 | . . 4 14 23 23 10 7 7 6 5 4 10 8 Ballistic Gun 6 | . 27 14 14 7 7 4 . . . . . . 2 Ballistic Cannon 1 | . . 6 . . . . . 5 2 . . . . Slashing Weapon 3 | . . . 2 . . 2 7 7 10 11 11 2 . Peak Build Rating 82 | 6 12 12 26 36 37 44 37 53 62 71 72 80 82 Average Rating 41 | 6 10 11 19 31 36 36 37 48 53 67 71 65 55 On Entrance 36 | 6 6 12 11 23 36 37 37 37 53 62 71 72 47 Naked Turns 18 | . . . . . . . . . . . . . 18 Heaviest Build 136 | 12 22 29 37 109 114 120 109 126 136 123 124 129 130 Greatest Support 95 | 20 20 40 40 69 69 69 28 28 66 80 80 95 77 Greatest Overweight (x) 15 | . 1 2 6 2 1 4 3 4 4 1 1 5 15 Average Overweight (x) 1 | . . . . 1 1 1 3 3 1 1 1 1 4 Largest Inventory Capacity 25 | 8 10 10 10 25 25 25 25 25 25 25 25 25 25 Average Capacity 20 | 8 9 8 10 10 25 25 25 25 25 25 25 25 24 Most Carried 25 | 6 10 10 10 13 16 18 17 20 22 25 25 25 25 Average Carried 15 | 6 8 7 9 10 14 14 17 18 18 23 25 19 20 Final Capacity 25 | 8 10 10 10 25 25 25 25 25 25 25 25 25 5 Final Carried 25 | 6 10 10 10 13 16 17 17 18 22 25 25 16 5 Class Distribution -------------------- 42% | Mutant 21% | Hacker-Gladiator 15% | Tank 5% | Scavenger-Tank 5% | Derelict-Skirmisher Dominant Class ---------------- Mutant | -10/Materials Mutant | -10/Subcaves Scavenger-Tank | -8/Materials Scavenger-Tank | -7/Factory Tank | -7/Lower Caves Tank | -7/Lower Caves Mutant | -7/Zion Tank | -6/Proximity Caves Hacker-Gladiator | -6/Factory Hacker-Gladiator | -5/Factory Hacker-Gladiator | -5/Upper Caves Hacker-Gladiator | -5/Upper Caves Mutant | -5/Warlord Resources | -11 -10 -10 -8 -7 -7 -7 -7 -6 -6 -5 -5 -5 -5 ----------- Run | Yrd Mat Sub Mat Fac Low Low Zio Pro Fac Fac Upp Upp War Matter Collected 2596 | 200 384 169 487 . 281 242 . 89 293 40 30 211 170 Remotely . | . . . . . . . . . . . . . . Salvage Created 4165 | . 745 203 687 . 126 915 . 85 557 251 . 464 132 Parts 168 | . 32 9 29 . 5 29 . 4 25 10 . 17 8 Haulers Intercepted 3 | . 2 . . . . . . . 1 . . . . Recyclers Shooed 7 | . . . 7 . . . . . . . . . . Parts Field Recycled . | . . . . . . . . . . . . . . Retrieved Matter . | . . . . . . . . . . . . . . Parts Self-Destructed 58 | . . 11 . . 4 25 . 4 . . . 14 . Prevented . | . . . . . . . . . . . . . . Kills | -11 -10 -10 -8 -7 -7 -7 -7 -6 -6 -5 -5 -5 -5 ------- Run | Yrd Mat Sub Mat Fac Low Low Zio Pro Fac Fac Upp Upp War Combat Hostiles Destroyed 81 | . 15 10 13 . 4 17 . 1 7 2 . 10 2 Melee 24 | . . . 4 . . 11 . . 2 2 . 5 . Guns 42 | . 15 6 6 . 4 6 . . 1 . . 3 1 Cannons 8 | . . 4 . . . . . 1 3 . . . . AOE 7 | . . . 3 . . . . . 1 . . 2 1 Classes Destroyed 15 | . 6 1 3 . . 2 . 2 . . . . 1 Worker 1 | . 1 . . . . . . . . . . . . Builder 1 | . . . 1 . . . . . . . . . . Hauler 3 | . 2 . . . . . . . 1 . . . . Recycler 6 | . . . 4 . . . . . 1 1 . . . Operator 1 | . 1 . . . . . . . . . . . . Swarmer 13 | . 1 3 3 . 3 1 . . . 1 . 1 . Grunt 37 | . 12 . 7 . . 8 . . 4 . . 6 . Brawler 7 | . . . 1 . . 5 . . . . . 1 . Duelist 1 | . . . . . . 1 . . . . . . . Sentry 8 | . . 1 2 . 1 1 . . 1 1 . 1 . Specialist 1 | . . . . . . . . . . . . . 1 Programmer 4 | . . . . . . . . 1 2 . . . 1 Behemoth 2 | . . . . . . 1 . . . . . 1 . Subdweller 8 | . 2 6 . . . . . . . . . . . Samaritan 1 | . . . . . . . . 1 . . . . . Best Kill Streak 6 | . 3 3 6 . 3 4 . 1 2 2 . 3 2 Combat Bots Only 4 | . 3 3 4 . 3 4 . 1 2 1 . 3 2 Max Kills in Single Turn 2 | . 2 2 2 . 2 1 . 1 1 1 . 1 1 Gunslinging 1 | . . 1 . . 1 . . . . . . . . Exploded 1 | . . . 1 . . . . . 1 . . 1 1 Melee 1 | . . . 1 . . 1 . . 1 1 . 1 . Uniques/NPCs Destroyed . | . . . . . . . . . . . . . . Combat | -11 -10 -10 -8 -7 -7 -7 -7 -6 -6 -5 -5 -5 -5 -------- Run | Yrd Mat Sub Mat Fac Low Low Zio Pro Fac Fac Upp Upp War Hostile Shots Fired 792 | . 53 86 85 . 38 179 . 4 56 25 . 111 155 Missed 226 | . 20 20 19 . 15 49 . 2 13 6 . 26 56 Damage Taken 11027 | . 445 1221 1017 . 226 2519 . 29 759 390 16 2090 2315 Core 1965 | . 63 133 224 . 70 359 . . 108 42 16 333 617 Absorbed by Shields . | . . . . . . . . . . . . . . Redirected to Shielding 85 | . 37 . . . 8 40 . . . . . . . Ignored by Resistances 40 | . . . . . . . . . . . . 40 . Regen/Repaired (Parts) 256 | . . . . . . . . . 131 . . . 125 Core Remaining (%) 61 | 100 . 21 59 . . . . 38 87 . . . . Volleys Fired 261 | . 48 56 43 . 8 31 1 5 21 . 3 26 19 Largest 4 | . 2 2 4 . 4 4 1 3 3 . 1 4 4 Hottest 456 | . 46 73 177 . 227 227 65 193 193 . 36 456 260 Shots Fired 596 | . 97 103 100 . 30 106 2 16 48 . 3 51 40 Gun 480 | . 97 69 91 . 30 94 2 5 20 . . 40 32 Cannon 80 | . . 31 . . . 10 . 11 28 . . . . Launcher 36 | . . 3 9 . . 2 . . . . 3 11 8 Special . | . . . . . . . . . . . . . . Kinetic 315 | . 97 88 54 . 8 31 . 6 17 . . . 14 Thermal 233 | . . 12 37 . 22 73 2 5 20 . . 40 22 Explosive 32 | . . 3 9 . . 2 . . . . 3 11 4 Electromagnetic 16 | . . . . . . . . 5 11 . . . . Robot Hit Streak 26 | . 16 26 11 . 10 16 . 2 4 . . 12 4 Robot Miss Streak 4 | . 3 4 3 . 2 3 2 2 2 . . 2 2 Penetration Max . | . . . . . . . . . . . . . . Secondary Targets 5 | . . 1 2 . 1 1 . . . . . . . Max Gunslinging Chain 1 | . . 1 1 . 1 1 . . . . . . . Shots Hit Robots 436 | . 64 66 70 . 16 110 . 7 29 10 . 44 20 Core Hits 183 | . 30 16 35 . 6 34 . 4 16 3 . 25 14 Critical Kills . | . . . . . . . . . . . . . . Critical Parts Destroyed . | . . . . . . . . . . . . . . Critical Strikes 22 | . . 2 2 . 2 8 . . . 1 . 6 1 Burn 7 | . . . 2 . 2 . . . . . . 3 . Destroy 1 | . . . . . . . . . . . . . 1 Blast 2 | . . 2 . . . . . . . . . . . Sever 12 | . . . . . . 8 . . . 1 . 3 . Melee Attacks 93 | . . . 6 . . 42 1 . 14 17 . 13 . Impact . | . . . . . . . . . . . . . . Slashing 93 | . . . 6 . . 42 1 . 14 17 . 13 . Piercing . | . . . . . . . . . . . . . . Sneak Attacks 7 | . . . 1 . . 3 . . 2 1 . . . Combat Hostiles . | . . . . . . . . . . . . . . Follow-up Attacks 1 | . . . . . . . . . . 1 . . . Damage Inflicted 11554 | . 990 1096 1843 . 270 2531 . 169 1200 555 . 2081 819 Guns 5063 | . 990 686 841 . 270 1112 . 48 130 . . 721 265 Cannons 1236 | . . 365 . . . 178 . 121 572 . . . . Explosions 2259 | . . . 716 . . 20 . . 124 . . 845 554 Melee 2907 | . . . 270 . . 1221 . . 374 555 . 487 . Ramming 89 | . . 45 16 . . . . . . . . 28 . Kinetic 3349 | . 990 925 483 . 17 403 . 82 310 . . . 139 Thermal 2773 | . . 126 358 . 253 887 . 48 254 . . 721 126 Explosive 2135 | . . . 716 . . 20 . . . . . 845 554 Electromagnetic 301 | . . . . . . . . 39 262 . . . . Impact . | . . . . . . . . . . . . . . Slashing 2907 | . . . 270 . . 1221 . . 374 555 . 487 . Piercing . | . . . . . . . . . . . . . . Highest Corruption 9 | . 5 5 . . . 3 3 3 2 . . . 9 Average Corruption 3 | . 2 5 . . . 3 3 3 1 . . . 4 Corruption Purged . | . . . . . . . . . . . . . . Corruption Blocked . | . . . . . . . . . . . . . . Effects 76 | . 9 40 . . . 8 5 7 5 . . . 2 Message Errors 19 | . 2 10 . . . 2 2 1 1 . . . 1 Matter Fused 16 | . 3 7 . . . 1 1 3 1 . . . . Heat Flow Errors 6 | . 1 4 . . . . . 1 . . . . . Energy Discharges 10 | . 2 5 . . . 1 1 . 1 . . . . Data Loss (minor) 14 | . . 8 . . . 3 . 1 1 . . . 1 Data Loss (major) 3 | . . 3 . . . . . . . . . . . Misfires 7 | . 1 2 . . . 1 1 1 1 . . . . Weapon Failures 1 | . . 1 . . . . . . . . . . . Overload Shots 1 | . . . . . . . . . . . . 1 . Overflow Damage 317 | . . . 91 . . . . 1 84 68 . 73 . Projectiles 1 | . . . . . . . . 1 . . . . . Explosions 85 | . . . 45 . . . . . . . . 40 . Melee 231 | . . . 46 . . . . . 84 68 . 33 . Knockbacks 14 | . . 8 . . . . . 1 5 . . . . Impact . | . . . . . . . . . . . . . . Kinetic 13 | . . 7 . . . . . 1 5 . . . . Secondary 1 | . . 1 . . . . . . . . . . . Self-Inflicted Damage 308 | . . 13 100 . . . . . 70 . 16 109 . Shots 8 | . . 1 2 . . . . . 1 . 1 3 . Rammed 38 | . . 27 11 . . . . . . . . . . Targets Rammed 39 | . . 27 11 . . . . . . . . 1 . Kicked 1 | . . . . . . . . . . . . 1 . Crushed . | . . . . . . . . . . . . . . Highest Temperature 681 | . 103 174 409 . 145 330 . 120 352 . . 681 378 Average Temperature 121 | . 14 77 119 . 64 109 . 21 104 . . 221 131 Received Heat Transfer 3622 | . 210 291 477 . 36 1073 . . 330 54 . 854 297 Effects 17 | . . . 5 . . . . . 2 . . 10 . Shutdowns 5 | . . . 2 . . . . . . . . 3 . Energy Bleed 1 | . . . . . . . . . . . . 1 . Interference 6 | . . . 3 . . . . . 2 . . 1 . Short Circuit 1 | . . . . . . . . . . . . 1 . Damage (minor) 2 | . . . . . . . . . . . . 2 . Damage (major) 2 | . . . . . . . . . . . . 2 . Siege Activations . | . . . . . . . . . . . . . . Robots Corrupted . | . . . . . . . . . . . . . . Combat Hostiles . | . . . . . . . . . . . . . . Parts Fried 1 | . . . . . . . . . 1 . . . . Impact Corruptions . | . . . . . . . . . . . . . . Robots Melted . | . . . . . . . . . . . . . . Combat Hostiles . | . . . . . . . . . . . . . . Parts Melted 5 | . . . . . 3 2 . . . . . . . Heat Transferred 6265 | . . 370 1036 . 703 1739 . 111 383 . . 1553 370 Parts Sabotaged . | . . . . . . . . . . . . . . Parts Stolen . | . . . . . . . . . . . . . . Parts Stripped . | . . . . . . . . . . . . . . Power Chain Reactions 1 | . . . . . . . . . 1 . . . . Alert | -11 -10 -10 -8 -7 -7 -7 -7 -6 -6 -5 -5 -5 -5 ------- Run | Yrd Mat Sub Mat Fac Low Low Zio Pro Fac Fac Upp Upp War Peak Influence 305 | . 252 . 305 153 . . . . 121 115 . . . Initial 138 | . . . 10 138 . . . . 18 16 . . . Average 66 | . 69 . 128 151 . . . . 27 38 . . . Maximum Alert Level 1 | . 1 . 1 . . . . . . . . . . Low Security (%) 94 | 100 92 . 79 100 . . . . 100 100 . . . Level 1 5 | . 7 . 20 . . . . . . . . . . Level 2 . | . . . . . . . . . . . . . . Level 3 . | . . . . . . . . . . . . . . Level 4 . | . . . . . . . . . . . . . . Level 5 . | . . . . . . . . . . . . . . High Security . | . . . . . . . . . . . . . . Max Security . | . . . . . . . . . . . . . . Squads Dispatched 9 | . 4 . 1 . . 1 . . 3 . . . . Investigation 4 | . 3 . . . . . . . 1 . . . . Extermination 2 | . . . . . . . . . 2 . . . . Reinforcement 2 | . 1 . 1 . . . . . . . . . . Assault 1 | . . . . . . 1 . . . . . . . Garrison . | . . . . . . . . . . . . . . Intercept . | . . . . . . . . . . . . . . Searches Triggered . | . . . . . . . . . . . . . . Construction Impeded 1 | . . . 1 . . . . . . . . . . Haulers Reinforced . | . . . . . . . . . . . . . . Active Scanning Responses . | . . . . . . . . . . . . . . Cargo Convoy Interrupts . | . . . . . . . . . . . . . . Stealth | -11 -10 -10 -8 -7 -7 -7 -7 -6 -6 -5 -5 -5 -5 --------- Run | Yrd Mat Sub Mat Fac Low Low Zio Pro Fac Fac Upp Upp War Distress Signals 4 | . 1 . 2 . . . . . . 1 . . . Communications Jammed . | . . . . . . . . . . . . . . Distress Signals . | . . . . . . . . . . . . . . Times Spotted 131 | . 23 10 20 1 8 18 1 1 11 5 2 10 21 Peak Tracking Total 13 | . 4 3 6 1 4 7 1 1 3 4 1 3 13 Tactical Retreats 11 | . 2 . . . 3 1 1 . 1 1 2 . . Traps | -11 -10 -10 -8 -7 -7 -7 -7 -6 -6 -5 -5 -5 -5 ------- Run | Yrd Mat Sub Mat Fac Low Low Zio Pro Fac Fac Upp Upp War Traps Triggered 3 | . 2 . . . . . . . . 1 . . . Indirectly . | . . . . . . . . . . . . . . Trap Hack Attempts . | . . . . . . . . . . . . . . Triggered . | . . . . . . . . . . . . . . Disarmed . | . . . . . . . . . . . . . . Reprogrammed . | . . . . . . . . . . . . . . Reused . | . . . . . . . . . . . . . . Traps Extracted . | . . . . . . . . . . . . . . Installed . | . . . . . . . . . . . . . . Triggered 25 | . . . . . . 1 . . . . 2 . 22 Time Bombs Activated 1 | . . . . . . . . . . . . . 1 Exploded 1 | . . . . . . . . . . . . . 1 Machines | -11 -10 -10 -8 -7 -7 -7 -7 -6 -6 -5 -5 -5 -5 ---------- Run | Yrd Mat Sub Mat Fac Low Low Zio Pro Fac Fac Upp Upp War Machines Disabled 6 | . . . 4 . . . . . 1 . . . 1 Max in Single Turn 2 | . . . 2 . . . . . 1 . . . 1 Machines Repaired . | . . . . . . . . . . . . . . Machines Dismantled . | . . . . . . . . . . . . . . Machines Sabotaged . | . . . . . . . . . . . . . . Overloaded Fab Kills . | . . . . . . . . . . . . . . Hacking | -11 -10 -10 -8 -7 -7 -7 -7 -6 -6 -5 -5 -5 -5 --------- Run | Yrd Mat Sub Mat Fac Low Low Zio Pro Fac Fac Upp Upp War Machines Accessed 18 | . 6 2 1 2 . . . . 4 1 . 1 1 Terminals 9 | . 6 . . 1 . . . . 1 1 . . . Fabricators 2 | . . . . . . . . . 2 . . . . Repair Stations 1 | . . . . . . . . . 1 . . . . Recycling Units . | . . . . . . . . . . . . . . Scanalyzers 2 | . . . 1 1 . . . . . . . . . Garrison Access . | . . . . . . . . . . . . . . Total Hacks 53 | . 20 3 7 6 . . . . 11 1 . 1 4 Successful 33 | . 10 3 6 4 . . . . 5 . . 1 4 Failed 19 | . 9 . 1 2 . . . . 6 1 . . . Catastrophic 1 | . 1 . . . . . . . . . . . . Database Lockouts 1 | . 1 . . . . . . . . . . . . Manual 24 | . 19 . . 2 . . . . 2 1 . . . Terminals 25 | . 20 . . 2 . . . . 2 1 . . . Fabricators 7 | . . . . . . . . . 7 . . . . Repair Stations 2 | . . . . . . . . . 2 . . . . Recycling Units . | . . . . . . . . . . . . . . Scanalyzers 11 | . . . 7 4 . . . . . . . . . Garrison Access . | . . . . . . . . . . . . . . Terminal Hacks 13 | . 5 3 . . . . . . . . . 1 4 Record 6 | . 1 1 . . . . . . . . . . 4 Robot Analysis 1 | . 1 . . . . . . . . . . . . Open Door 2 | . . 1 . . . . . . . . . 1 . Unreport Threat 2 | . 2 . . . . . . . . . . . . Transport Status 1 | . 1 . . . . . . . . . . . . Release Object 1 | . . 1 . . . . . . . . . . . Fabricator Hacks 3 | . . . . . . . . . 3 . . . . Network Status 1 | . . . . . . . . . 1 . . . . Load Schematic 1 | . . . . . . . . . 1 . . . . Build 1 | . . . . . . . . . 1 . . . . Repair Station Hacks 2 | . . . . . . . . . 2 . . . . Scan Component 1 | . . . . . . . . . 1 . . . . Repair 1 | . . . . . . . . . 1 . . . . Recycling Unit Hacks . | . . . . . . . . . . . . . . Scanalyzer 10 | . . . 6 4 . . . . . . . . . Insert Component 5 | . . . 3 2 . . . . . . . . . Analyze 5 | . . . 3 2 . . . . . . . . . Garrison Access Hacks . | . . . . . . . . . . . . . . Unauthorized Hacks 5 | . 5 . . . . . . . . . . . . Terminals 5 | . 5 . . . . . . . . . . . . Botnet 5 | . 5 . . . . . . . . . . . . Fabricators . | . . . . . . . . . . . . . . Repair Stations . | . . . . . . . . . . . . . . Recycling Units . | . . . . . . . . . . . . . . Scanalyzers . | . . . . . . . . . . . . . . Garrison Access . | . . . . . . . . . . . . . . Data Cores Recovered . | . . . . . . . . . . . . . . Used . | . . . . . . . . . . . . . . Hacking Detections 13 | . 5 . 1 2 . . . . 4 1 . . . Full Trace Events 5 | . 4 . . . . . . . 1 . . . . Feedback Events 1 | . 1 . . . . . . . . . . . . Corruption 1 | . 1 . . . . . . . . . . . . Feedback Blocked . | . . . . . . . . . . . . . . Robot Schematics Acquired 3 | . . . . . . . 3 . . . . . . Robots Built . | . . . . . . . . . . . . . . Authchips . | . . . . . . . . . . . . . . Time . | . . . . . . . . . . . . . . Total Robot Build Rating . | . . . . . . . . . . . . . . Part Schematics Acquired 20 | . . . 2 2 . . 16 . . . . . . Parts Built 2 | . . . . . . . . . 2 . . . . Authchips . | . . . . . . . . . . . . . . Time 42 | . . . . . . . . . 42 . . . . Total Part Build Rating 8 | . . . . . . . . . 8 . . . . Parts Repaired 1 | . . . . . . . . . 1 . . . . Time 22 | . . . . . . . . . 22 . . . . Parts Recycled . | . . . . . . . . . . . . . . Recycled Matter . | . . . . . . . . . . . . . . Retrieved Matter . | . . . . . . . . . . . . . . Retrieved Components . | . . . . . . . . . . . . . . Parts Scanalyzed 4 | . . . 3 1 . . . . . . . . . Part Schematics Acquired 4 | . . . 2 2 . . . . . . . . . Parts Damaged . | . . . . . . . . . . . . . . Bothacking | -11 -10 -10 -8 -7 -7 -7 -7 -6 -6 -5 -5 -5 -5 ------------ Run | Yrd Mat Sub Mat Fac Low Low Zio Pro Fac Fac Upp Upp War Used RIF Installer . | . . . . . . . . . . . . . . Robots Hacked . | . . . . . . . . . . . . . . Non-combat . | . . . . . . . . . . . . . . Combat . | . . . . . . . . . . . . . . Robot Hacks Applied . | . . . . . . . . . . . . . . Relay Couplers Released . | . . . . . . . . . . . . . . Fabnet Peak Effective % . | . . . . . . . . . . . . . . Robots Rewired . | . . . . . . . . . . . . . . Allies Hacked . | . . . . . . . . . . . . . . Hacks Repelled . | . . . . . . . . . . . . . . Allies | -11 -10 -10 -8 -7 -7 -7 -7 -6 -6 -5 -5 -5 -5 -------- Run | Yrd Mat Sub Mat Fac Low Low Zio Pro Fac Fac Upp Upp War Total Allies . | . . . . . . . . . . . . . . Largest Group . | . . . . . . . . . . . . . . Highest-Rated Group . | . . . . . . . . . . . . . . Highest-Rated Ally . | . . . . . . . . . . . . . . Total Orders . | . . . . . . . . . . . . . . Ally Attacks . | . . . . . . . . . . . . . . Total Damage . | . . . . . . . . . . . . . . Kills . | . . . . . . . . . . . . . . Allies Corrupted . | . . . . . . . . . . . . . . Allies Melted 2 | . . . . . . . . . . . . . 2 Intel | -11 -10 -10 -8 -7 -7 -7 -7 -6 -6 -5 -5 -5 -5 ------- Run | Yrd Mat Sub Mat Fac Low Low Zio Pro Fac Fac Upp Upp War Robot Analysis Total 1 | . 1 . . . . . . . . . . . . Derelict Logs Recovered 4 | . . 1 . . . 2 . 1 . . . . . Drone Launches . | . . . . . . . . . . . . . . Drone Recoveries . | . . . . . . . . . . . . . . Exploration | -11 -10 -10 -8 -7 -7 -7 -7 -6 -6 -5 -5 -5 -5 ------------- Run | Yrd Mat Sub Mat Fac Low Low Zio Pro Fac Fac Upp Upp War Turns Passed 12320 | 3 1278 1523 683 301 803 1197 205 559 1434 607 711 1066 1950 Spaces Moved 4649 | 3 588 648 332 208 321 459 139 346 523 232 143 317 390 Core 36 | . . . 1 . . . . . . . . . 35 Treads 1769 | . . 520 112 9 321 284 . . 312 . . 86 125 Legs 1388 | 3 588 128 . . . . . . 63 232 143 231 . Wheels 1226 | . . . 219 199 . 175 139 346 148 . . . . Hover 230 | . . . . . . . . . . . . . 230 Flight . | . . . . . . . . . . . . . . Fastest Speed 50 | 120 120 160 110 130 240 145 145 145 145 200 200 198 50 Average Speed 215 | 120 173 189 134 133 240 204 145 155 212 200 200 270 480 Slowest Speed 1300 | 120 190 260 350 240 240 320 145 160 240 200 200 560 1300 Overloaded Moves . | . . . . . . . . . . . . . . Propulsion Burnouts . | . . . . . . . . . . . . . . Robots Hopped . | . . . . . . . . . . . . . . Cave-ins Triggered . | . . . . . . . . . . . . . . Exploration Rate (%) 36 | 2 89 50 27 5 47 61 12 52 14 7 32 54 54 Regions Visited 13 Branch Regions 8 Pre-discovered Areas 1 | . . 1 . . . . . . . . . . . Known Exits Taken . | . . . . . . . . . . . . . . Unknown Exits Taken 13 | 1 1 1 1 1 1 1 1 1 1 1 1 1 . Scrap Searched 11 | . . . . . 5 3 . 1 . . 2 . . Spaces Dug 57 | . . . . . . . . . 7 4 30 16 . Terrain Destroyed 255 | . . 18 45 . . 8 . 2 13 4 45 94 26 Melee 14 | . . . . . . . . . 7 4 . 3 . Projectile 11 | . . . . . . 1 . 2 2 . . 3 3 AOE 230 | . . 18 45 . . 7 . . 4 . 45 88 23 Terrain Rammed . | . . . . . . . . . . . . . . Walls Destroyed . | . . . . . . . . . . . . . . Machines Disabled . | . . . . . . . . . . . . . . Actions | -11 -10 -10 -8 -7 -7 -7 -7 -6 -6 -5 -5 -5 -5 --------- Run | Yrd Mat Sub Mat Fac Low Low Zio Pro Fac Fac Upp Upp War Total 6285 | 2 758 825 470 238 335 580 140 356 780 347 564 459 431 Wait 981 | . 98 60 47 . 2 21 . . 177 80 418 78 . Move 4636 | 2 587 647 331 207 320 458 138 345 522 231 142 316 390 Hop . | . . . . . . . . . . . . . . Pick Up 89 | . 8 10 6 9 3 11 . 3 18 8 . 5 8 Fast Attach 41 | . 2 6 10 4 1 3 . 1 2 4 . 3 5 Attach 47 | . 2 3 4 1 . 11 . 2 12 1 . 10 1 Detach 6 | . 1 . 1 . . 1 . . 1 . . . 2 Swap 41 | . 4 7 4 5 . 2 . . 7 2 1 6 3 Drop 52 | . 8 7 7 12 1 . . . 7 7 . 1 2 Fire 261 | . 48 56 43 . 8 31 1 5 21 . 3 26 19 Melee 89 | . . . 6 . . 42 1 . 13 14 . 13 . Ram . | . . . . . . . . . . . . . . Kick 1 | . . . . . . . . . . . . 1 . Crush 38 | . . 27 11 . . . . . . . . . . Escape Stasis . | . . . . . . . . . . . . . . Rewire 1 | . . 1 . . . . . . . . . . . Trap 1 | . . . . . . . . . . . . . 1 Miscellaneous 1 | . . 1 . . . . . . . . . . . Route ------- -11/Scrapyard -10/Materials (discovered 6 exits: [*Mat x3] / [*Min x2] / *Sub) -10/Subcaves (discovered 2 exits: *Mat x2) -8/Materials -7/Factory -7/Lower Caves -7/Lower Caves -7/Zion -6/Proximity Caves -6/Factory -5/Factory -5/Upper Caves -5/Upper Caves -5/Warlord (discovered 1 exit: [*Pro]) History --------- Turn | Location | Event 1 | -11/Scrapyard | Discovered new exit (range 0) 4 | -11/Scrapyard | Entered Materials 198 | -10/Materials | Discovered new exit (range 8) 295 | -10/Materials | Discovered new exit (range 3) 304 | -10/Materials | Build established: Mutant 551 | -10/Materials | Discovered new exit (range 9) 653 | -10/Materials | Central database locked down 704 | -10/Materials | Derelicts attacked the area 715 | -10/Materials | Discovered new exit (range 16) 1180 | -10/Materials | Discovered new exit (range 15) 1250 | -10/Materials | Discovered new exit (range 12) 1282 | -10/Materials | Entered Subcaves 1315 | -10/Subcaves | Learned location of Storage (-7) 1455 | -10/Subcaves | Shifting Twisted Machinery released Sub. Optics 1498 | -10/Subcaves | Shifting Twisted Machinery released Spk. Treads 1727 | -10/Subcaves | A swath of the cavern ceiling suddenly collapsed 2070 | -10/Subcaves | Discovered new exit (range 14) 2268 | -10/Subcaves | Core integrity fell below 50% 2379 | -10/Subcaves | A swath of the cavern ceiling suddenly collapsed 2665 | -10/Subcaves | Discovered new exit (range 10) 2767 | -10/Subcaves | Released subatomizers from SUBCON Basin 2805 | -10/Subcaves | Entered Materials 2805 | -8/Materials | Evolved 4 slots: Utility x2, Weapon x2 3101 | -8/Materials | Lost 4 parts (1p2n1w) 3404 | -8/Materials | Build established: Scavenger-Tank 3480 | -8/Materials | Discovered new exit (range 5) 3488 | -8/Materials | Entered Factory 3488 | -7/Factory | Evolved 2 slots: Propulsion x1, Utility x1 3753 | -7/Factory | Discovered new exit (range 6) 3789 | -7/Factory | Entered Lower Caves 3889 | -7/Lower Caves | Attracted the attention of an 0b10 checkpoint 4064 | -7/Lower Caves | Build established: Tank 4548 | -7/Lower Caves | Discovered new exit (range 14) 4592 | -7/Lower Caves | Entered another Lower Caves area 4885 | -7/Lower Caves | Spotted B-75 Beast 5026 | -7/Lower Caves | Lost 5 parts (1n1u3w) 5050 | -7/Lower Caves | Destroyed B-75 Beast 5373 | -7/Lower Caves | Learned Factory stockpile data 5375 | -7/Lower Caves | Attracted the attention of an 0b10 outpost 5465 | -7/Lower Caves | Lost 6 parts (1p2n2u1w) 5488 | -7/Lower Caves | Core integrity fell below 50% 5543 | -7/Lower Caves | Lost 3 parts (1u2w) 5599 | -7/Lower Caves | Learned 4 Factory zone layouts 5702 | -7/Lower Caves | Build established: Mutant 5780 | -7/Lower Caves | Discovered new exit (range 8) 5789 | -7/Lower Caves | Entered Zion 5943 | -7/Zion | Discovered new exit (range 14) 5960 | -7/Zion | Attacked by Zionites 5994 | -7/Zion | Entered Proximity Caves 6150 | -6/Proximity Caves | Learned Factory stockpile data 6463 | -6/Proximity Caves | Build established: Tank 6535 | -6/Proximity Caves | Discovered new exit (range 12) 6553 | -6/Proximity Caves | Entered Factory 6553 | -6/Factory | Evolved 2 slots: Power x1, Utility x1 6603 | -6/Factory | Repaired Rnf. Deuterium Engine 6704 | -6/Factory | Lost 3 parts (1p1n1u) 6888 | -6/Factory | Fabricated Greatsword (x2) 6951 | -6/Factory | Lost 4 parts (1p1n1u1w) 7418 | -6/Factory | Build established: Hacker-Gladiator 7921 | -6/Factory | Discovered new exit (range 19) 7987 | -6/Factory | Entered another Factory area 7987 | -5/Factory | Evolved 2 slots: Propulsion x2 8547 | -5/Factory | Discovered new exit (range 10) 8594 | -5/Factory | Entered Upper Caves 9047 | -5/Upper Caves | Discovered new exit (range 10) 9305 | -5/Upper Caves | Entered another Upper Caves area 9573 | -5/Upper Caves | Attracted the attention of an 0b10 checkpoint 9824 | -5/Upper Caves | Spotted B-75 Beast 9876 | -5/Upper Caves | Destroyed B-75 Beast 9906 | -5/Upper Caves | Lost 9 parts (1p5n1u2w) 10058 | -5/Upper Caves | Lost 4 parts (2n2w) 10275 | -5/Upper Caves | Discovered new exit (range 17) 10329 | -5/Upper Caves | Build established: Mutant 10371 | -5/Upper Caves | Entered Warlord 10469 | -5/Warlord | Discovered new exit (range 20) 11280 | -5/Warlord | Met Warlord 11305 | -5/Warlord | Warlord's base attacked by MAIN.C 11655 | -5/Warlord | Warlord forces counterattacked 11793 | -5/Warlord | Found Prototype Energy Gun 11798 | -5/Warlord | Found Prototype Energy Gun 11842 | -5/Warlord | Build established: Derelict-Skirmisher 11980 | -5/Warlord | Warlord base infiltrated, sounded retreat 12259 | -5/Warlord | Spotted Striker 12291 | -5/Warlord | Core integrity fell below 50% 12303 | -5/Warlord | Released all parts (6) 12311 | -5/Warlord | Core integrity fell below 20% 12311 | -5/Warlord | Spotted B-86 Titan 12317 | -5/Warlord | Spotted Striker 12321 | -5/Warlord | Destroyed by B-86 Titan with Railgun Last Messages --------------- 12299_ G-50 Soldier destroyed. 12301_ The unstable cave ceiling collapses. 12301_ P-70 Sage resets G-50 Soldier, system corruption cleaned. 12303_ Backup Laser III destroyed. 12303_ Released Adv. Terrain Scanner. 12303_ Released Hacking Suite. 12303_ Released Huge Storage Unit. 12303_ Released Adv. Terrain Scan Processor. 12303_ Released Rnf. Deuterium Engine. 12303_ Released Backup Laser III. 12305_ ANNOUNCEMENT: Detected 1 Melee squad, 1 Swarmer squad, 1 Behemoth squad, 1 Demolisher squad, with prototype support. 12308_ P-80 Master resets Striker, system corruption cleaned. 12311_ The unstable cave ceiling collapses. 12311_ 17 Matter crushed. 12317_ Slug penetrates Earth. 12318_ Knocked back. Map ----- +----------------------------------------------------+ | | | ????????????????????????????????? | | ????????????????????????????????? | | ????????????????????????????????? | | ????????????????????????????????? | | ????????????????????????????????? | | ????????????????????????????????? | | ????????????????????????????????? | | ????????????????????????????????? | | ????????????????????????????????? | | ????????????????????????????????? | | ????????????????????????????????? | | ????????????????????????????????? | | ???????????????????????#####????? | | ??????????????????????## ##???? | | ????????????????????### %[???? | | ?#??????#?? ????#???#; <%???? | | ###?###?#? #?###?# ? #?? | | #####?##? ####### #?#? | | #########" ###?## i#?## | | #########"" #?##### ;###? | | ######### " ##?### ! ]K;##### | | ########## #; ####BBb# # # | | ############ ## %BB # | | ############ ; ## # | | ############### # @l[ # | | ################ ! # *=% | | ################ = ; [ | | ################# ## K | | ###### #?## # # | | ##### # ######### =## % | | # # ## # ## # # !## | | == # ## # %!## # | | * # # #[ ### | | *!! [* !#= # ## ## | | [*!! =[ #!% # % # # | | !!!=[ =% %[ % # ### | | !!]! = / !%! #### ### | | =!! % # #### # ## | | ! ! # ##### # # | | [ # ##### ## | | # # ### " # # #### ## | | "" ### ####### ### ### | | ### ## ########## "## #?# | | ################# ### #### | | ################# ## # ^ #### | | ################ ##### ##### | | ################ ###### ####? | | ################^ ####### ##### | | ################ ######## ##### | +----------------------------------------------------+ Best States ------------- Heat Dissipation 105 Coolant Potential 50 Energy Generation 30 Energy Capacity 505 Matter Stores 300 Matter Capacity 300 Sight Range 21 Robot Scan Range 15 Terrain Scan Range 20 Terrain Scan Density 210 ECM Strength 2 Base Temperature (-) 150 Armor Coverage 800 Resistance: TH 30 Utility Shielding 33 Weapon Shielding 33 Evasion (%) 55 Melee Accuracy 6 Recoil Reduction 3 Offensive Hacking 10 Defensive Hacking 11 Item Schematics ----------------- Sub. Beam Cannon | -8/Materials | Scanalyzed Hacking Suite | -8/Materials | Scanalyzed Gauss Rifle | -7/Factory | Scanalyzed Huge Storage Unit | -7/Factory | Scanalyzed Adv. Assault Cannon | -7/Zion | Archive Energy Well | -7/Zion | Archive Force Booster | -7/Zion | Archive Imp. Thermal Shield | -7/Zion | Archive Lrn. Proton Cannon | -7/Zion | Archive Med. Reactive Plating | -7/Zion | Archive Imp. Core Shielding | -7/Zion | Archive Gravmag System | -7/Zion | Archive Imp. Trap Scanner | -7/Zion | Archive Greatsword | -7/Zion | Archive Proton Cannon | -7/Zion | Archive Hvy. Mass Driver | -7/Zion | Archive Lgt. Angular Momentum Engine | -7/Zion | Archive Coolant Injector | -7/Zion | Archive Arc Projector | -7/Zion | Archive Adv. Sensor Array | -7/Zion | Archive Robot Schematics ------------------ R-06 Scavenger | -7/Zion | Archive T-07 Excavator | -7/Zion | Archive S-27 Virus | -7/Zion | Archive Fabricated ------------ Greatsword | x2 | -6/Factory Alien Tech Used ----------------- None Achievements -------------- None Challenges ------------ None Game ------ Seed SchematicEnhancedDrive Manual? 0 Play Time 01:02:02 Cumulative 82.9 hours Start 2024.08.09 @ 13:51:14 End 2024.08.09 @ 14:50:58 Sessions 1 Manual Loads 0 Difficulty Rogue Special Mode None Game No. 99 Rogue 99 Adventurer 0 Explorer 0 Win Type - Total 0 Types 0/0/0/0/0/0/0/0/0 Lore% 42 Gallery% 54 Achievement% 51 Wizard Run 0 Options --------- Layout 1 ASCII 0 Keyboard 0 Movement Mouse Keybinds 0 Fullscreen 1 Font 32/SmallcapsGlow Map View 50x35 Zoom Use 0% Tactical HUD 1 Map Filters NONE Filters NONE Steam 1 RUN: ae299dbf-c4b1-4894-be9b-98cf4f2a60fc